fUST/lending_fUST_20250118
["ID","MTS","AMOUNT","RATE_DAILY","PERIOD"]
[349422169,1737173446869,-537.52,0.00023424,3]
[349422170,1737173446879,-500.0,0.00023424,3]
[349422171,1737173446889,-1468.04,0.00023424,2]
[349422172,1737173446899,-500.0,0.00023424,3]
[349422173,1737173446909,-4441.31,0.00023424,3]
[349422174,1737173446918,-500.0,0.00023424,3]
[349422175,1737173446927,-1473.51,0.00023424,3]
[349422176,1737173446936,-164.437861,0.00023435,2]
[349422177,1737173446946,-220.36160955,0.00023452,3]
[349422178,1737173446955,-220.36160955,0.00023486,3]
[349422179,1737173446964,-151.0,0.000235,8]
[349422180,1737173446974,-420.0,0.00023512,2]
[349422181,1737173446983,-220.36160955,0.00023521,3]
[349422182,1737173446992,-500.0,0.00023522,2]
[349422183,1737173447002,-610.04478058,0.00023525,2]
[349422184,1737173447011,-5000.0,0.00023535,2]
[349422185,1737173447021,-5000.0,0.00023535,2]
[349422186,1737173447030,-5000.0,0.00023535,2]
[349422187,1737173447040,-5000.0,0.00023535,2]
[349422188,1737173447049,-220.36160955,0.00023555,3]
[349422189,1737173447058,-243.41427308,0.00023561,3]
[349422190,1737173447067,-677.88,0.00023561,3]
[349422191,1737173447077,-500.0,0.00023561,2]
[349422192,1737173447086,-5433.26,0.00023561,3]
[349422193,1737173447095,-556.74,0.00023561,3]
[349422194,1737173447105,-1888.03,0.00023561,3]
[349422195,1737173447115,-829.25,0.00023561,3]
[349422196,1737173447124,-500.0,0.00023561,3]
[349422197,1737173447134,-2344.16,0.00023561,3]
[349422198,1737173447143,-500.0,0.00023561,3]
[349422199,1737173447152,-986.01,0.00023561,3]
[349422200,1737173447161,-12040.66,0.00023561,3]
[349422201,1737173447170,-520.97,0.00023561,3]
[349422202,1737173447179,-692.87,0.00023561,3]
[349422203,1737173447188,-891.23,0.00023561,3]
[349422204,1737173447197,-1743.98,0.00023561,3]
[349422205,1737173447206,-1227.64,0.00023561,3]
[349422206,1737173447216,-1017.64,0.00023561,3]
[349422207,1737173447226,-500.0,0.00023561,3]
[349422208,1737173447235,-500.0,0.00023561,3]
[349422209,1737173447246,-565.78,0.00023561,3]
[349422210,1737173447255,-537.52,0.00023561,3]
[349422211,1737173447264,-500.0,0.00023561,3]
[349422212,1737173447372,-1468.04,0.00023561,2]
[349422213,1737173447382,-500.0,0.00023561,3]
[349422214,1737173447392,-4441.31,0.00023561,3]
[349422215,1737173447401,-500.0,0.00023561,3]
[349422216,1737173447411,-1473.51,0.00023561,3]
[349422217,1737173447421,-7862.51180416,0.00023563,2]
[349422218,1737173447433,-220.36160955,0.0002359,3]
[349422219,1737173447443,-2258.75,0.000236,30]
[349422220,1737173447452,-8655.61,0.000236,2]
[349422221,1737173447462,-151.0,0.000236,5]
[349422222,1737173447471,-152.47,0.000236,31]
[349422223,1737173447480,-152.47,0.000236,31]
[349422224,1737173447489,-152.47,0.000236,31]
[349422225,1737173447499,-152.47,0.000236,31]
[349422226,1737173447508,-152.47,0.000236,31]
[349422227,1737173447517,-152.47,0.000236,31]
[349422228,1737173447527,-152.47,0.000236,31]
[349422229,1737173447536,-152.47,0.000236,31]
[349422230,1737173447545,-152.47,0.000236,31]
[349422231,1737173447555,-152.47,0.000236,31]
[349422232,1737173447564,-152.47,0.000236,31]
[349422233,1737173447573,-152.47,0.000236,31]
[349422234,1737173447583,-152.47,0.000236,31]
[349422235,1737173447593,-152.47,0.000236,31]
[349422236,1737173447602,-152.47,0.000236,31]
[349422237,1737173447612,-151.0,0.000236,7]
[349422238,1737173447621,-220.36160955,0.00023624,3]
[349422239,1737173447631,-220.36160955,0.00023659,3]
[349422240,1737173447643,-24307.40172623,0.0002369,15]
[349422241,1737173447653,-220.36160955,0.00023693,3]
[349422242,1737173447663,-500.0,0.00023698,7]
[349422243,1737173447673,-677.88,0.00023698,3]
[349422244,1737173447682,-500.0,0.00023698,2]
[349422245,1737173447692,-5433.26,0.00023698,3]
[349422246,1737173447701,-556.74,0.00023698,3]
[349422247,1737173447711,-1888.03,0.00023698,3]
[349422248,1737173447720,-829.25,0.00023698,3]
[349422249,1737173447729,-500.0,0.00023698,3]
[349422250,1737173447739,-2344.16,0.00023698,3]
[349422251,1737173447749,-500.0,0.00023698,3]
[349422252,1737173447759,-986.01,0.00023698,3]
[349422253,1737173447769,-12040.66,0.00023698,3]
[349422254,1737173447778,-520.97,0.00023698,3]
[349422255,1737173447788,-692.87,0.00023698,3]
[349422256,1737173447797,-891.23,0.00023698,3]
[349422257,1737173447807,-1743.98,0.00023698,3]
[349422258,1737173447816,-1227.64,0.00023698,3]
[349422259,1737173447826,-1017.64,0.00023698,3]
[349422260,1737173447835,-500.0,0.00023698,3]
[349422261,1737173447845,-500.0,0.00023698,3]
[349422262,1737173447856,-565.78,0.00023698,3]
[349422263,1737173447865,-537.52,0.00023698,3]
[349422264,1737173447875,-500.0,0.00023698,3]
[349422265,1737173447884,-1468.04,0.00023698,2]
[349422266,1737173447894,-500.0,0.00023698,3]
[349422267,1737173447904,-4441.31,0.00023698,3]
[349422268,1737173447914,-500.0,0.00023698,3]
[349422269,1737173447923,-1473.51,0.00023698,3]
[349422270,1737173447933,-2000.0,0.000237,2]
[349422271,1737173447944,-151.0,0.000237,5]
[349422272,1737173447953,-3087.23642996,0.000237,2]
[349422273,1737173447962,-3087.23642987,0.000237,2]
[349422274,1737173447971,-3087.23642987,0.000237,2]
[349422275,1737173447980,-3087.23642987,0.00023701,2]
[349422276,1737173447989,-3087.23642987,0.00023701,2]
[349422277,1737173447998,-3087.23642987,0.00023701,2]
[349422278,1737173448008,-3087.23642987,0.00023701,2]
[349422279,1737173448017,-3087.23642987,0.00023702,2]
[349422280,1737173448026,-3087.23642987,0.00023702,2]
[349422281,1737173448035,-3087.23642987,0.00023702,2]
[349422282,1737173448045,-220.36160955,0.00023728,3]
[349422283,1737173448054,-249.8,0.00023751,2]
[349422284,1737173448063,-151.0,0.00023753,15]
[349422285,1737173448072,-220.36160955,0.00023762,3]
[349422286,1737173448081,-209.35153957,0.00023763,2]
[349422287,1737173448090,-500.0,0.00023763,2]
[349422288,1737173448099,-500.0,0.00023773,2]
[349422289,1737173448108,-500.0,0.00023773,2]
[349422290,1737173448117,-161.50998066,0.00023773,2]
[349422291,1737173448126,-500.0,0.00023773,2]
[349422292,1737173448135,-520.43366398,0.00023773,2]
[349422293,1737173448145,-500.2618481,0.00023773,2]
[349422294,1737173448154,-500.0,0.00023773,2]
[349422295,1737173448163,-603.70300899,0.00023773,2]
[349422296,1737173448172,-500.0,0.00023773,2]
[349422297,1737173448182,-271.31983101,0.00023773,2]
[349422298,1737173448191,-257.94299049,0.00023773,2]
[349422299,1737173448201,-500.0,0.00023773,2]
[349422300,1737173448210,-157518.32661158,0.0002378,10]
[349422301,1737173448225,-2521.337325,0.0002378,10]
[349422302,1737173448305,-163.17820763,0.00021817,2]
[349422303,1737173448315,-652.14782905,0.0002378,10]
[349422307,1737173633374,164.13742,0.00013973,2]
[349422308,1737173669074,4055.56,0.00018,30]
[349422310,1737174109816,3155.3067877,0.00025,120]
[349422334,1737174576718,163.860091,0.00013973,2]
[349422395,1737174632778,-300.0,0.00020984,2]
[349422397,1737174632789,-38.2,0.00020985,2]
[349422398,1737174632803,-2470.4627985,0.00020985,2]
[349422400,1737174632816,-10476.19363315,0.00020985,2]
[349422411,1737174632942,-5013.98510785,0.00020985,2]
[349422413,1737174632953,-822.06943182,0.00021399,2]
[349422414,1737174632964,-152.0,0.00021491,2]
[349422416,1737174632975,-194.77826851,0.00021499,2]
[349422418,1737174632986,-500.0,0.00021499,2]
[349422420,1737174632997,-536.67022202,0.00021499,2]
[349422422,1737174633009,-500.0,0.00021499,2]
[349422424,1737174633024,-503.07206094,0.00021499,2]
[349422425,1737174633036,-500.0,0.00021499,2]
[349422426,1737174633047,-500.0,0.00021499,2]
[349422427,1737174633059,-397.48830176,0.00021499,2]
[349422428,1737174633071,-500.0,0.00021499,2]
[349422429,1737174633081,-500.0,0.00021499,2]
[349422431,1737174633092,-500.0,0.00021499,2]
[349422434,1737174633105,-500.0,0.00021499,2]
[349422435,1737174633116,-500.0,0.00021499,2]
[349422437,1737174633126,-529.95766318,0.00021499,2]
[349422439,1737174633136,-191.83647646,0.00021499,2]
[349422441,1737174633148,-500.0,0.00021499,2]
[349422443,1737174633160,-500.0,0.00021499,2]
[349422445,1737174633171,-500.0,0.00021499,2]
[349422447,1737174633183,-500.0,0.00021499,2]
[349422449,1737174633194,-500.0,0.00021499,2]
[349422451,1737174633205,-500.0,0.00021499,2]
[349422452,1737174633215,-500.0,0.00021499,2]
[349422454,1737174633226,-277.54033868,0.00021499,2]
[349422455,1737174633236,-468.04286656,0.00021499,2]
[349422457,1737174633247,-500.0,0.00021499,2]
[349422458,1737174633257,-500.0,0.00021499,2]
[349422460,1737174633268,-500.0,0.00021499,2]
[349422462,1737174633279,-500.0,0.00021499,2]
[349422464,1737174633289,-170.08026744,0.00021499,2]
[349422466,1737174633300,-500.0,0.00021499,2]
[349422468,1737174633312,-500.0,0.00021499,2]
[349422470,1737174633323,-500.0,0.00021499,2]
[349422471,1737174633334,-500.0,0.00021499,2]
[349422473,1737174633345,-500.0,0.00021499,2]
[349422475,1737174633356,-500.0,0.00021499,2]
[349422477,1737174633369,-500.0,0.00021499,2]
[349422479,1737174633380,-297.27264335,0.00021499,2]
[349422481,1737174633391,-81200.47018801,0.000215,10]
[349422602,1737174638736,-205720.0,0.000215,10]
[349422604,1737174638749,-9793.94600711,0.000215,10]
[349423123,1737174643687,-479.394,0.000215,10]
[349423125,1737174643700,-784.8061933,0.000215,10]
[349423130,1737174643745,-784.02953436,0.000215,10]
[349423133,1737174643757,-20786.20846998,0.000215,10]
[349423135,1737174643770,-20190.77069263,0.000215,10]
[349423448,1737174646601,-331.266836,0.000215,10]
[349423466,1737174646768,-94747.74444983,0.000215,10]
[349425734,1737174753592,270.0217576,0.000194,2]
[349425736,1737175055077,180.01450507,0.000194,2]
[349425737,1737175142477,3844.0,0.0002,3]
[349425738,1737175142786,3840.0,0.0002,3]
[349425739,1737175143224,3840.0,0.0002,3]
[349425740,1737175143519,3840.0,0.0002,3]
[349425741,1737175143819,3840.0,0.0002,3]
[349425742,1737175144119,3840.0,0.0002,3]
[349425743,1737175145261,2713.0,0.0002,3]
[349425744,1737175145564,2713.0,0.0002,3]
[349425745,1737175145892,2713.0,0.0002,3]
[349425746,1737175146206,2713.0,0.0002,3]
[349425747,1737175146506,2713.0,0.0002,3]
[349425748,1737175146815,2713.0,0.0002,3]
[349425750,1737175502135,163.604094,0.00013973,2]
[349425803,1737175837785,-195.3295222,0.00020106,2]
[349425805,1737175837795,-12513.24500421,0.00020475,2]
[349425807,1737175837807,-453.41142749,0.00020475,2]
[349425809,1737175837816,-11403.6448961,0.00020894,2]
[349425811,1737175837825,-551.21744444,0.00021075,2]
[349425813,1737175837835,-6797.1154639,0.00021183,2]
[349425816,1737175837845,-816.57357161,0.000213,2]
[349425818,1737175837854,-707.10556639,0.000214,2]
[349425820,1737175837864,-213.88334195,0.00021473,2]
[349425822,1737175837874,-500.0,0.00021473,2]
[349425824,1737175837883,-500.0,0.00021473,2]
[349425825,1737175837893,-500.0,0.00021473,2]
[349425827,1737175837902,-284.14335497,0.00021473,2]
[349425829,1737175837912,-500.0,0.00021473,2]
[349425832,1737175837921,-7834.07213608,0.000215,5]
[349425834,1737175837930,-677.50055202,0.000215,5]
[349425836,1737175837940,-14378.83443006,0.000215,10]
[349425838,1737175837951,-1540.28423873,0.000215,10]
[349425840,1737175837964,-5139.6,0.000215,10]
[349425843,1737175837981,-593066.02495999,0.000215,10]
[349425846,1737175837992,-9131.77,0.000215,2]
[349425849,1737175838002,-2054.62,0.000215,2]
[349425851,1737175838011,-159.11,0.000215,2]
[349425853,1737175838023,-152.0,0.00021618,2]
[349425854,1737175838032,-816.57357159,0.00021647,2]
[349425856,1737175838041,-220.36160955,0.000219,3]
[349425858,1737175838050,-3876.53645554,0.0002191,2]
[349425860,1737175838060,-438.72317994,0.00021917,3]
[349425862,1737175838069,-501.08269803,0.00021917,3]
[349425864,1737175838078,-500.0,0.00021917,3]
[349425866,1737175838087,-500.45486258,0.00021917,3]
[349425868,1737175838097,-502.56600681,0.00021917,3]
[349425871,1737175838106,-619.40607956,0.00021917,3]
[349425873,1737175838115,-503.32134277,0.00021917,3]
[349425875,1737175838124,-500.81670628,0.00021917,3]
[349425877,1737175838134,-227.77656592,0.00021917,3]
[349425879,1737175838144,-500.0,0.00021917,3]
[349425881,1737175838153,-502.43901249,0.00021917,3]
[349425883,1737175838162,-500.80372381,0.00021917,3]
[349425884,1737175838171,-502.21726588,0.00021917,3]
[349425886,1737175838180,-500.0,0.00021917,3]
[349425889,1737175838190,-500.0,0.00021917,3]
[349425890,1737175838199,-500.0,0.00021917,3]
[349425893,1737175838209,-500.0,0.00021917,3]
[349425894,1737175838218,-500.0,0.00021917,3]
[349425896,1737175838228,-500.0,0.00021917,3]
[349425897,1737175838238,-500.0,0.00021917,3]
[349425898,1737175838247,-500.0,0.00021917,3]
[349425899,1737175838257,-502.85570311,0.00021917,3]
[349425900,1737175838268,-500.0,0.00021917,3]
[349425901,1737175838278,-500.0,0.00021917,3]
[349425902,1737175838288,-500.0,0.00021917,3]
[349425903,1737175838298,-500.0,0.00021917,3]
[349425904,1737175838309,-500.0,0.00021917,3]
[349425905,1737175838319,-502.55346504,0.00021917,3]
[349425906,1737175838329,-500.0,0.00021917,3]
[349425907,1737175838339,-500.0,0.00021917,3]
[349425908,1737175838348,-500.0,0.00021917,3]
[349425909,1737175838357,-500.0,0.00021917,3]
[349425910,1737175838367,-500.0,0.00021917,3]
[349425911,1737175838377,-502.71664224,0.00021917,3]
[349425912,1737175838387,-500.0,0.00021917,3]
[349425913,1737175838397,-500.0,0.00021917,3]
[349425914,1737175838407,-504.66258735,0.00021917,3]
[349425915,1737175838417,-464.91686022,0.00021917,3]
[349425917,1737175838426,-500.0,0.00021917,3]
[349425919,1737175838436,-503.89050975,0.00021917,3]
[349425921,1737175838446,-500.0,0.00021917,3]
[349425923,1737175838456,-501.94899465,0.00021917,3]
[349425925,1737175838468,-500.0,0.00021917,3]
[349425927,1737175838477,-500.0,0.00021917,3]
[349425929,1737175838487,-500.0,0.00021917,3]
[349425931,1737175838497,-503.81395218,0.00021917,3]
[349425933,1737175838506,-500.0,0.00021917,3]
[349425935,1737175838515,-500.0,0.00021917,3]
[349425937,1737175838525,-500.0,0.00021917,3]
[349425939,1737175838534,-500.0,0.00021917,3]
[349425941,1737175838542,-500.0,0.00021917,3]
[349425943,1737175838552,-500.0,0.00021917,3]
[349425945,1737175838562,-501.79719776,0.00021917,3]
[349425947,1737175838571,-500.0,0.00021917,3]
[349425949,1737175838582,-500.0,0.00021917,3]
[349425951,1737175838592,-500.0,0.00021917,3]
[349425953,1737175838601,-500.0,0.00021917,3]
[349425955,1737175838613,-500.0,0.00021917,3]
[349425957,1737175838623,-500.0,0.00021917,3]
[349425959,1737175838632,-502.19894416,0.00021917,3]
[349425961,1737175838642,-500.0,0.00021917,3]
[349425963,1737175838652,-500.0,0.00021917,3]
[349425965,1737175838661,-502.34451837,0.00021917,3]
[349425967,1737175838672,-500.0,0.00021917,3]
[349425969,1737175838683,-500.0,0.00021917,2]
[349425971,1737175838693,-503.18299003,0.00021917,3]
[349425973,1737175838702,-501.57533648,0.00021917,3]
[349425975,1737175838711,-500.0,0.00021917,3]
[349425977,1737175838721,-500.0,0.00021917,3]
[349425979,1737175838730,-500.0,0.00021917,3]
[349425981,1737175838739,-500.0,0.00021917,3]
[349425983,1737175838748,-500.0,0.00021917,3]
[349425985,1737175838758,-500.0,0.00021917,3]
[349425987,1737175838769,-500.0,0.00021917,3]
[349425989,1737175838779,-500.0,0.00021917,3]
[349425991,1737175838788,-500.0,0.00021917,3]
[349425993,1737175838798,-500.0,0.00021917,3]
[349425995,1737175838807,-500.0,0.00021917,3]
[349425997,1737175838816,-202.68673891,0.00021917,3]
[349425999,1737175838826,-500.0,0.00021917,3]
[349426001,1737175838836,-500.0,0.00021917,3]
[349426003,1737175838845,-500.0,0.00021917,3]
[349426005,1737175838855,-500.0,0.00021917,3]
[349426008,1737175838866,-502.11534147,0.00021917,3]
[349426024,1737175839004,-500.0,0.00021917,3]
[349426026,1737175839015,-505.56819699,0.00021917,3]
[349426028,1737175839025,-500.0,0.00021917,3]
[349426030,1737175839034,-500.0,0.00021917,3]
[349426033,1737175839048,-500.0,0.00021917,3]
[349426035,1737175839058,-500.0,0.00021917,3]
[349426037,1737175839067,-500.0,0.00021917,3]
[349426039,1737175839077,-501.36359456,0.00021917,3]
[349426041,1737175839086,-500.0,0.00021917,3]
[349426043,1737175839095,-502.0488432,0.00021917,3]
[349426045,1737175839105,-414.55237561,0.00021917,3]
[349426047,1737175839115,-502.25731096,0.00021917,3]
[349426049,1737175839124,-504.14668299,0.00021917,3]
[349426051,1737175839133,-502.69434425,0.00021917,3]
[349426053,1737175839143,-500.0,0.00021917,3]
[349426055,1737175839153,-500.0,0.00021917,3]
[349426057,1737175839162,-500.0,0.00021917,3]
[349426059,1737175839171,-500.0,0.00021917,3]
[349426061,1737175839180,-514.33614304,0.00021917,3]
[349426063,1737175839190,-500.0,0.00021917,3]
[349426065,1737175839199,-500.0,0.00021917,3]
[349426067,1737175839208,-324.62091161,0.00021917,3]
[349426069,1737175839218,-500.0,0.00021917,3]
[349426071,1737175839227,-503.79687182,0.00021917,3]
[349426073,1737175839236,-500.0,0.00021917,3]
[349426075,1737175839245,-500.0,0.00021917,3]
[349426077,1737175839254,-316.13870383,0.00021917,3]
[349426079,1737175839263,-500.0,0.00021917,3]
[349426081,1737175839273,-500.0,0.00021917,3]
[349426083,1737175839282,-500.0,0.00021917,3]
[349426085,1737175839292,-500.0,0.00021917,3]
[349426087,1737175839301,-500.0,0.00021917,3]
[349426089,1737175839310,-510.24562768,0.00021917,3]
[349426091,1737175839320,-504.02343078,0.00021917,3]
[349426093,1737175839329,-500.0,0.00021917,3]
[349426095,1737175839339,-504.76028542,0.00021917,3]
[349426097,1737175839349,-500.0,0.00021917,3]
[349426099,1737175839358,-500.0,0.00021917,3]
[349426101,1737175839368,-500.0,0.00021917,3]
[349426103,1737175839377,-500.0,0.00021917,3]
[349426105,1737175839387,-500.0,0.00021917,3]
[349426107,1737175839396,-500.0,0.00021917,3]
[349426109,1737175839406,-500.0,0.00021917,3]
[349426111,1737175839415,-500.0,0.00021917,3]
[349426113,1737175839424,-503.94318694,0.00021917,3]
[349426116,1737175839434,-500.0,0.00021917,3]
[349426119,1737175839443,-500.0,0.00021917,3]
[349426122,1737175839453,-447.43469856,0.00021917,3]
[349426125,1737175839462,-500.0,0.00021917,3]
[349426127,1737175839472,-500.0,0.00021917,3]
[349426129,1737175839482,-505.48232064,0.00021917,3]
[349426131,1737175839494,-500.0,0.00021917,3]
[349426133,1737175839503,-500.0,0.00021917,3]
[349426135,1737175839512,-501.09861505,0.00021917,3]
[349426137,1737175839523,-500.0,0.00021917,3]
[349426139,1737175839533,-500.0,0.00021917,3]
[349426141,1737175839542,-500.0,0.00021917,3]
[349426143,1737175839551,-500.0,0.00021917,3]
[349426146,1737175839562,-500.0,0.00021917,3]
[349426149,1737175839571,-500.0,0.00021917,3]
[349426151,1737175839580,-500.0,0.00021917,3]
[349426154,1737175839590,-500.0,0.00021917,3]
[349426155,1737175839599,-500.0,0.00021917,3]
[349426157,1737175839608,-500.0,0.00021917,3]
[349426160,1737175839617,-508.79451557,0.00021917,3]
[349426161,1737175839631,-500.0,0.00021917,3]
[349426164,1737175839642,-500.0,0.00021917,3]
[349426166,1737175839651,-500.0,0.00021917,3]
[349426168,1737175839660,-500.0,0.00021917,3]
[349426170,1737175839670,-500.0,0.00021917,3]
[349426172,1737175839679,-500.0,0.00021917,3]
[349426174,1737175839688,-500.0,0.00021917,3]
[349426176,1737175839697,-500.0,0.00021917,3]
[349426178,1737175839707,-500.0,0.00021917,3]
[349426180,1737175839716,-501.97023757,0.00021917,3]
[349426182,1737175839726,-521.87562508,0.00021917,3]
[349426184,1737175839735,-500.0,0.00021917,3]
[349426186,1737175839744,-501.63592278,0.00021917,3]
[349426188,1737175839753,-500.0,0.00021917,3]
[349426190,1737175839763,-483.60839104,0.00021917,3]
[349426192,1737175839775,-500.0,0.00021917,3]
[349426194,1737175839784,-500.0,0.00021917,3]
[349426196,1737175839793,-500.0,0.00021917,3]
[349426198,1737175839802,-500.0,0.00021917,3]
[349426200,1737175839811,-223.49032868,0.00021917,3]
[349426202,1737175839821,-500.0,0.00021917,3]
[349426204,1737175839830,-500.0,0.00021917,3]
[349426206,1737175839839,-500.0,0.00021917,3]
[349426208,1737175839848,-188.60089398,0.00021917,2]
[349426210,1737175839857,-500.0,0.00021917,3]
[349426212,1737175839866,-500.0,0.00021917,3]
[349426214,1737175839875,-500.0,0.00021917,3]
[349426215,1737175839884,-500.0,0.00021917,3]
[349426218,1737175839894,-500.0,0.00021917,3]
[349426220,1737175839903,-500.0,0.00021917,3]
[349426222,1737175839912,-500.0,0.00021917,3]
[349426224,1737175839922,-500.0,0.00021917,3]
[349426226,1737175839931,-500.0,0.00021917,3]
[349426228,1737175839941,-500.0,0.00021917,3]
[349426230,1737175839951,-500.0,0.00021917,3]
[349426232,1737175839960,-500.0,0.00021917,3]
[349426234,1737175839969,-500.0,0.00021917,3]
[349426236,1737175839978,-500.0,0.00021917,3]
[349426238,1737175839987,-500.0,0.00021917,3]
[349426240,1737175839996,-500.0,0.00021917,3]
[349426242,1737175840005,-500.0,0.00021917,3]
[349426244,1737175840015,-500.0,0.00021917,3]
[349426245,1737175840026,-500.0,0.00021917,3]
[349426248,1737175840035,-500.0,0.00021917,3]
[349426250,1737175840044,-500.0,0.00021917,3]
[349426252,1737175840053,-500.0,0.00021917,3]
[349426254,1737175840063,-500.0,0.00021917,3]
[349426256,1737175840072,-234.78374907,0.00021917,3]
[349426258,1737175840082,-500.0,0.00021917,3]
[349426260,1737175840091,-500.0,0.00021917,3]
[349426262,1737175840100,-500.0,0.00021917,3]
[349426264,1737175840110,-502.75985314,0.00021917,3]
[349426266,1737175840119,-500.0,0.00021917,3]
[349426268,1737175840130,-213.46406434,0.00021917,3]
[349426270,1737175840141,-500.0,0.00021917,3]
[349426272,1737175840151,-500.0,0.00021917,3]
[349426274,1737175840160,-500.0,0.00021917,3]
[349426276,1737175840169,-500.0,0.00021917,3]
[349426278,1737175840179,-500.0,0.00021917,3]
[349426280,1737175840188,-502.01908741,0.00021917,3]
[349426282,1737175840197,-500.0,0.00021917,3]
[349426284,1737175840207,-500.0,0.00021917,3]
[349426286,1737175840217,-500.0,0.00021917,3]
[349426288,1737175840226,-500.0,0.00021917,3]
[349426290,1737175840235,-500.0,0.00021917,3]
[349426292,1737175840245,-500.0,0.00021917,3]
[349426294,1737175840253,-500.0,0.00021917,3]
[349426296,1737175840262,-500.0,0.00021917,3]
[349426298,1737175840273,-500.0,0.00021917,3]
[349426300,1737175840282,-500.0,0.00021917,3]
[349426302,1737175840291,-500.0,0.00021917,3]
[349426304,1737175840301,-402.82294609,0.00021917,3]
[349426306,1737175840310,-500.0,0.00021917,3]
[349426308,1737175840320,-500.0,0.00021917,3]
[349426310,1737175840330,-500.0,0.00021917,3]
[349426312,1737175840340,-500.0,0.00021917,3]
[349426314,1737175840349,-500.0,0.00021917,3]
[349426316,1737175840359,-502.54889015,0.00021917,3]
[349426318,1737175840368,-500.0,0.00021917,3]
[349426320,1737175840378,-568.30179641,0.00021917,3]
[349426322,1737175840387,-500.0,0.00021917,3]
[349426324,1737175840398,-500.0,0.00021917,3]
[349426326,1737175840407,-500.0,0.00021917,3]
[349426328,1737175840417,-500.0,0.00021917,3]
[349426330,1737175840426,-427.01458491,0.00021917,3]
[349426332,1737175840436,-500.0,0.00021917,3]
[349426334,1737175840445,-500.0,0.00021917,3]
[349426336,1737175840455,-500.0,0.00021917,3]
[349426338,1737175840465,-500.0,0.00021917,3]
[349426340,1737175840474,-500.0,0.00021917,3]
[349426342,1737175840487,-500.0,0.00021917,3]
[349426344,1737175840496,-500.0,0.00021917,3]
[349426346,1737175840506,-500.0,0.00021917,3]
[349426348,1737175840515,-500.0,0.00021917,3]
[349426350,1737175840525,-500.0,0.00021917,3]
[349426352,1737175840535,-500.0,0.00021917,3]
[349426355,1737175840545,-500.0,0.00021917,3]
[349426357,1737175840554,-500.0,0.00021917,3]
[349426359,1737175840564,-567.06,0.00021917,3]
[349426361,1737175840573,-500.0,0.00021917,3]
[349426363,1737175840583,-492.76477719,0.00021917,3]
[349426365,1737175840592,-500.0,0.00021917,3]
[349426367,1737175840602,-502.08121658,0.00021917,3]
[349426369,1737175840611,-209.95370714,0.00021917,3]
[349426371,1737175840621,-500.0,0.00021917,3]
[349426373,1737175840630,-500.0,0.00021917,3]
[349426375,1737175840642,-500.0,0.00021917,3]
[349426377,1737175840651,-500.0,0.00021917,3]
[349426379,1737175840661,-500.0,0.00021917,3]
[349426381,1737175840670,-500.0,0.00021917,3]
[349426383,1737175840680,-500.0,0.00021917,3]
[349426385,1737175840689,-500.0,0.00021917,3]
[349426387,1737175840698,-500.0,0.00021917,3]
[349426389,1737175840707,-500.0,0.00021917,3]
[349426391,1737175840716,-500.0,0.00021917,3]
[349426393,1737175840726,-500.0,0.00021917,3]